[Event "TUR-ch Youth U17 2019"]
[Site "Belek"]
[Date "2019.01.22"]
[Round "5"]
[White "Aytekin, Murat Eren"]
[Black "Ozgur, Isa"]
[Result "1-0"]
[ECO "D37"]
[WhiteElo "2163"]
[BlackElo "2090"]
[Annotator "NA"]
[PlyCount "107"]
[EventDate "2019.01.20"]
[EventType "swiss"]
[EventCountry "TUR"]
[SourceTitle "playchess.com"]
[Source "ChessBase"]
[SourceQuality "1"]
[TimeControl "5400+30"]

1. d4 {[%emt 0:00:30]} Nf6 {[%emt 0:00:30]} 2. c4 {[%emt 0:00:00]} e6 {[%emt 0:00:00]} 3. Nf3 {[%emt 0:00:00]} a6 {[%emt 0:00:00]} 4. Nc3 {[%emt 0:04:30]} d5 {[%emt 0:00:30]} 5. cxd5 {[%emt 0:01:30]} exd5 {[%emt 0:00:00]} 6. Bg5 {[%emt 0:00:30]} Be6 {[%emt 0:00:00]} 7. e3 {[%emt 0:01:30]} Nbd7 {[%emt 0:00:30]} 8. Bd3 {[%emt 0:01:30]} h6 {[%emt 0:00:30]} 9. Bh4 {[%emt 0:00:30]} Bd6 {[%emt 0:00:30]} 10. O-O {[%emt 0:04:30]} O-O {[%emt 0:00:30]} 11. Rb1 {[%emt 0:01:30]} Qe7 {[%emt 0:25:30]} 12. Re1 {[%emt 0:04:30]} g5 {[%emt 0:13:30]} 13. Bg3 {[%emt 0:01:30]} Bxg3 {[%emt 0:00:30]} 14. hxg3 {[%emt 0:00:30]} Qd6 {[%emt 0:02:30]} 15. Qc2 {[%emt 0:11:30]} c6 {[%emt 0:03:30]} 16. Na4 {[%emt 0:03:30]} Ne4 {[%emt 0:10:30]} 17. b4 {[%emt 0:12:30]} b6 {[%emt 0:02:30]} 18. Rec1 {[%emt 0:02:30]} Rfc8 {[%emt 0:03:30]} 19. Bxe4 {[%emt 0:09:30]} dxe4 {[%emt 0:00:30]} 20. Nd2 {[%emt 0:00:30]} f5 {[%emt 0:08:30]} 21. g4 {[%emt 0:01:30]} fxg4 {[%emt 0:01:30]} 22. Nxe4 {[%emt 0:01:30]} Qe7 {[%emt 0:00:30]} 23. Ng3 {[%emt 0:02:30]} Qf7 {[%emt 0:03:30]} 24. Rb2 {[%emt 0:02:30]} h5 {[%emt 0:02:30]} 25. e4 {[%emt 0:09:30]} h4 {[%emt 0:07:05]} 26. Nf5 {[%emt 0:01:30]} Bxf5 {[%emt 0:00:05]} 27. exf5 {[%emt 0:00:00]} b5 {[%emt 0:02:37]} 28. Nc5 {[%emt 0:02:25]} Nb6 {[%emt 0:00:44]} 29. Qe4 {[%emt 0:00:36]} Nc4 {[%emt 0:00:51]} 30. Re2 {[%emt 0:02:05]} Re8 {[%emt 0:07:24]} 31. Ne6 {[%emt 0:07:52]} Nd6 {[%emt 0:00:38]} 32. Qe5 {[%emt 0:00:36]} Nxf5 {[%emt 0:00:58]} 33. Rxc6 {[%emt 0:01:34]} Rac8 {[%emt 0:01:28]} 34. Rc5 {[%emt 0:01:18]} g3 {[%emt 0:01:24]} 35. d5 {[%emt 0:01:36]} Qg6 {[%emt 0:00:47]} 36. f3 {[%emt 0:04:07]} Rxc5 {[%emt 0:01:20]} 37. bxc5 {[%emt 0:00:04]} h3 {[%emt 0:00:00]} 38. gxh3 {[%emt 0:00:35]} Nh4 {[%emt 0:00:19]} 39. Qxg3 {[%emt 0:00:40]} Qf5 {[%emt 0:00:32]} 40. Nd4 {[%emt 0:00:54]} Qb1+ {[%emt 0:01:02]} 41. Kh2 {[%emt 0:02:10]} Rxe2+ {[%emt 0:00:38]} 42. Nxe2 {[%emt 0:00:30]} Qf5 {[%emt 0:00:30]} 43. f4 {[%emt 0:00:30]} Qxd5 {[%emt 0:00:30]} 44. Qxg5+ {[%emt 0:00:30]} Qxg5 {[%emt 0:00:30]} 45. fxg5 {[%emt 0:00:30]} Nf3+ {[%emt 0:00:30]} 46. Kg3 {[%emt 0:00:30]} Nxg5 {[%emt 0:00:30]} 47. Kg4 {[%emt 0:00:30]} Ne6 {[%emt 0:00:30]} 48. c6 {[%emt 0:00:30]} a5 {[%emt 0:00:30]} 49. Kf5 {[%emt 0:00:30]} Kf7 {[%emt 0:00:30]} 50. Ke5 {[%emt 0:00:30]} Ke7 {[%emt 0:00:30]} 51. Nc3 {[%emt 0:00:30]} Ng5 {[%emt 0:00:30]} 52. Nd5+ {[%emt 0:00:30]} Kd8 {[%emt 0:00:18]} 53. h4 {[%emt 0:01:23]} Nh7 {[%emt 0:00:45]} 54. Ke4 {[%emt 0:00:39]} 1-0

[Event "TUR-ch Youth U17 2019"]
[Site "Belek"]
[Date "2019.01.22"]
[Round "5"]
[White "Kocyigit, Buse Naz"]
[Black "Yilmaz, Duygu Sila"]
[Result "1-0"]
[ECO "D11"]
[WhiteElo "2043"]
[BlackElo "1407"]
[Annotator "NA"]
[PlyCount "63"]
[EventDate "2019.01.20"]
[EventType "swiss"]
[EventCountry "TUR"]
[SourceTitle "playchess.com"]
[Source "ChessBase"]
[SourceQuality "1"]
[TimeControl "5400+30"]

1. d4 d5 2. Nf3 Nf6 3. c4 c6 4. Qc2 Nbd7 5. Nbd2 dxc4 6. Nxc4 e6 7. a3 c5 8. e3 b6 9. dxc5 Nxc5 10. b4 Nce4 11. Nce5 Nd6 12. Qc6+ Bd7 13. Nxd7 Nxd7 14. Ba6 Rb8 {[%emt 1:17:00]} 15. b5 {[%emt 1:33:46]} Nf5 {[%emt 0:01:37]} 16. Ne5 {[%emt 0:00:32]} Bc5 {[%emt 0:00:30]} 17. Bb2 {[%emt 0:01:55]} Ne7 {[%emt 0:02:44]} 18. Qxd7+ {[%emt 0:00:30]} Qxd7 {[%emt 0:00:30]} 19. Nxd7 {[%emt 0:00:30]} Kxd7 {[%emt 0:00:30]} 20. Bxg7 {[%emt 0:00:30]} Rhg8 {[%emt 0:00:30]} 21. Be5 {[%emt 0:00:30]} Rbd8 {[%emt 0:00:30]} 22. Ke2 {[%emt 0:00:30]} Nd5 {[%emt 0:08:15]} 23. e4 {[%emt 0:01:27]} f6 {[%emt 0:00:30]} 24. Bg3 {[%emt 0:00:30]} Nc3+ {[%emt 0:00:30]} 25. Kd3 {[%emt 0:00:30]} Na4 {[%emt 0:00:30]} 26. Kc2 {[%emt 0:00:30]} Ke7 {[%emt 0:00:30]} 27. e5 {[%emt 0:00:30]} fxe5 {[%emt 0:09:24]} 28. Bh4+ {[%emt 0:00:00]} Kf7 {[%emt 0:00:30]} 29. Bxd8 {[%emt 0:00:00]} Rxd8 {[%emt 0:00:30]} 30. Kb3 {[%emt 0:00:00]} Rd4 {[%emt 0:00:30]} 31. Rhd1 {[%emt 0:00:00]} Rg4 {[%emt 0:00:30]} 32. f3 {[%emt 0:00:00]} 1-0

[Event "TUR-ch Youth U17 2019"]
[Site "Belek"]
[Date "2019.01.22"]
[Round "5"]
[White "Onur, Cem"]
[Black "Cansun, Can Alp"]
[Result "1-0"]
[ECO "B23"]
[WhiteElo "1885"]
[BlackElo "2174"]
[Annotator "NA"]
[PlyCount "103"]
[EventDate "2019.01.20"]
[EventType "swiss"]
[EventCountry "TUR"]
[SourceTitle "playchess.com"]
[Source "ChessBase"]
[SourceQuality "1"]
[TimeControl "5400+30"]

1. e4 {[%emt 0:00:30]} c5 {[%emt 0:04:30]} 2. Nc3 {[%emt 0:00:30]} a6 {[%emt 0:00:30]} 3. a4 {[%emt 0:00:30]} Nc6 {[%emt 0:00:30]} 4. f4 {[%emt 0:00:30]} e6 {[%emt 0:00:00]} 5. Bc4 {[%emt 0:00:00]} Nge7 {[%emt 0:00:00]} 6. d3 {[%emt 0:01:00]} d5 {[%emt 0:00:30]} 7. Ba2 {[%emt 0:01:30]} g6 {[%emt 0:08:30]} 8. Nf3 {[%emt 0:00:30]} Bg7 {[%emt 0:00:30]} 9. O-O {[%emt 0:00:30]} O-O {[%emt 0:00:30]} 10. Qe1 {[%emt 0:08:30]} Nd4 {[%emt 0:00:30]} 11. Nxd4 {[%emt 0:00:00]} cxd4 {[%emt 0:00:30]} 12. Ne2 {[%emt 0:00:00]} dxe4 {[%emt 0:06:30]} 13. dxe4 {[%emt 0:00:00]} Nc6 {[%emt 0:00:30]} 14. e5 {[%emt 0:00:00]} f6 {[%emt 0:00:30]} 15. exf6 {[%emt 0:00:30]} Qxf6 {[%emt 0:07:30]} 16. Ng3 {[%emt 0:05:30]} Kh8 {[%emt 0:03:30]} 17. Ne4 {[%emt 0:14:30]} Qe7 {[%emt 0:00:30]} 18. Ng5 {[%emt 0:03:30]} h6 {[%emt 0:13:30]} 19. Nf3 {[%emt 0:09:30]} Bd7 {[%emt 0:06:30]} 20. Bd2 {[%emt 0:04:30]} Rae8 {[%emt 0:07:30]} 21. Qg3 {[%emt 0:00:30]} Kh7 {[%emt 0:01:30]} 22. Rae1 {[%emt 0:02:30]} Bf6 {[%emt 0:01:30]} 23. Bb1 {[%emt 0:08:30]} Qg7 {[%emt 0:08:30]} 24. c3 {[%emt 0:13:30]} Ne7 {[%emt 0:06:30]} 25. Ne5 {[%emt 0:09:50]} Nf5 {[%emt 0:04:55]} 26. Bxf5 {[%emt 0:01:28]} exf5 {[%emt 0:00:08]} 27. cxd4 {[%emt 0:02:53]} Bxa4 {[%emt 0:00:35]} 28. Bb4 {[%emt 0:00:28]} Rg8 {[%emt 0:03:23]} 29. Rc1 {[%emt 0:00:28]} g5 {[%emt 0:03:05]} 30. Rf2 {[%emt 0:06:00]} Rc8 {[%emt 0:02:05]} 31. Rxc8 {[%emt 0:00:34]} Rxc8 {[%emt 0:00:30]} 32. Bc3 {[%emt 0:00:00]} Bb5 {[%emt 0:03:10]} 33. Qh3 {[%emt 0:01:19]} g4 {[%emt 0:01:55]} 34. Qe3 {[%emt 0:02:02]} Qg8 {[%emt 0:00:52]} 35. Qc1 {[%emt 0:02:09]} h5 {[%emt 0:00:30]} 36. Qc2 {[%emt 0:00:43]} Kh6 {[%emt 0:05:16]} 37. Qxf5 {[%emt 0:00:40]} Rf8 {[%emt 0:00:18]} 38. Qb1 {[%emt 0:02:19]} Bxe5 {[%emt 0:00:47]} 39. fxe5 {[%emt 0:00:18]} Rxf2 {[%emt 0:00:37]} 40. Kxf2 {[%emt 0:00:30]} Qf7+ {[%emt 0:00:00]} 41. Kg1 {[%emt 0:00:00]} Qf4 {[%emt 0:00:47]} 42. Qe1 {[%emt 0:00:00]} Kg6 {[%emt 0:00:24]} 43. e6 {[%emt 0:00:26]} Bc6 {[%emt 0:00:41]} 44. e7 {[%emt 0:00:57]} Kf7 {[%emt 0:00:16]} 45. d5 {[%emt 0:00:33]} Bd7 {[%emt 0:00:37]} 46. g3 {[%emt 0:01:43]} Qc4 {[%emt 0:00:37]} 47. e8=Q+ {[%emt 0:00:40]} Bxe8 {[%emt 0:00:01]} 48. Qe6+ {[%emt 0:00:36]} Kf8 {[%emt 0:00:02]} 49. Qh6+ {[%emt 0:00:34]} Ke7 {[%emt 0:00:15]} 50. Qf6+ {[%emt 0:00:00]} Kd7 {[%emt 0:00:42]} 51. Qe6+ {[%emt 0:00:00]} Kc7 {[%emt 0:00:16]} 52. d6+ {[%emt 0:00:25]} 1-0

[Event "TUR-ch Youth U17 2019"]
[Site "Belek"]
[Date "2019.01.22"]
[Round "5"]
[White "Baspinar, Lara"]
[Black "Catal, Uktenur"]
[Result "1/2-1/2"]
[ECO "C08"]
[WhiteElo "1763"]
[BlackElo "1854"]
[Annotator "NA"]
[PlyCount "65"]
[EventDate "2019.01.20"]
[EventType "swiss"]
[EventCountry "TUR"]
[SourceTitle "playchess.com"]
[Source "ChessBase"]
[SourceQuality "1"]
[TimeControl "5400+30"]

1. e4 e6 2. d4 d5 3. Nd2 a6 4. Ngf3 c5 5. exd5 exd5 6. Be2 Bd6 7. dxc5 Bxc5 8. Nb3 Bb6 9. O-O Nf6 10. Bg5 O-O 11. c3 Re8 12. Re1 Be6 13. Nfd4 h6 14. Bh4 g5 15. Bg3 Ne4 16. Bf3 Bc8 17. Nd2 {[%emt 1:04:30]} Bxd4 {[%emt 1:08:30]} 18. Bxe4 {[%emt 0:09:30]} dxe4 {[%emt 0:01:30]} 19. cxd4 {[%emt 0:00:30]} f5 {[%emt 0:05:30]} 20. Be5 {[%emt 0:03:30]} Nc6 {[%emt 0:03:30]} 21. Nc4 {[%emt 0:05:08]} b5 {[%emt 0:01:30]} 22. Nd6 {[%emt 0:00:54]} Nxe5 {[%emt 0:00:30]} 23. Nxe8 {[%emt 0:00:54]} Nd3 {[%emt 0:00:30]} 24. Re3 {[%emt 0:07:08]} Be6 {[%emt 0:03:48]} 25. Qh5 {[%emt 0:01:32]} Qxe8 {[%emt 0:00:42]} 26. Qxh6 {[%emt 0:00:16]} g4 {[%emt 0:00:45]} 27. h3 {[%emt 0:03:30]} Ra7 {[%emt 0:00:54]} 28. hxg4 {[%emt 0:02:28]} Rh7 {[%emt 0:00:05]} 29. Qg5+ {[%emt 0:00:00]} Rg7 {[%emt 0:00:18]} 30. Qh6 {[%emt 0:00:31]} Rh7 {[%emt 0:00:17]} 31. Qg5+ {[%emt 0:00:13]} Rg7 {[%emt 0:00:45]} 32. Qh6 {[%emt 0:00:09]} Rh7 {[%emt 0:08:57]} 33. Qg5+ {[%emt 0:00:09]} 1/2-1/2

[Event "TUR-ch Youth U17 2019"]
[Site "Belek"]
[Date "2019.01.22"]
[Round "5"]
[White "Sahin, Hayrun Nisa"]
[Black "Sen, Irem"]
[Result "1-0"]
[ECO "B08"]
[WhiteElo "1743"]
[BlackElo "1765"]
[Annotator "NA"]
[PlyCount "115"]
[EventDate "2019.01.20"]
[EventType "swiss"]
[EventCountry "TUR"]
[SourceTitle "playchess.com"]
[Source "ChessBase"]
[SourceQuality "1"]
[TimeControl "5400+30"]

1. e4 g6 2. d4 Bg7 3. Nc3 c6 4. Nf3 d6 5. Be3 Nf6 6. Qd2 b5 7. Bd3 O-O 8. Bh6 a6 9. h4 Nh5 10. O-O-O Qc7 11. Rdg1 e5 12. g4 {[%emt 0:56:00]} Nf6 {[%emt 1:10:00]} 13. Bxg7 {[%emt 0:28:02]} Kxg7 {[%emt 0:00:00]} 14. g5 {[%emt 0:03:32]} Nh5 {[%emt 0:05:00]} 15. dxe5 {[%emt 0:00:16]} dxe5 {[%emt 0:00:00]} 16. Ne1 {[%emt 0:00:06]} Be6 {[%emt 0:07:13]} 17. Be2 {[%emt 0:02:12]} Nf4 {[%emt 0:03:03]} 18. Nd3 {[%emt 0:00:53]} Rd8 {[%emt 0:04:15]} 19. h5 {[%emt 0:00:05]} Nxe2+ {[%emt 0:04:32]} 20. Qxe2 {[%emt 0:00:35]} Rg8 {[%emt 0:00:46]} 21. Nc5 {[%emt 0:03:25]} Bc4 {[%emt 0:00:24]} 22. Qf3 {[%emt 0:00:22]} Qe7 {[%emt 0:00:44]} 23. hxg6 {[%emt 0:00:29]} hxg6 {[%emt 0:01:16]} 24. Rh7+ {[%emt 0:00:23]} Kf8 {[%emt 0:00:43]} 25. Rd1 {[%emt 0:00:32]} Ra7 {[%emt 0:02:31]} 26. b3 {[%emt 0:00:30]} Bd5 {[%emt 0:00:39]} 27. Qe3 {[%emt 0:00:28]} Rc7 {[%emt 0:01:14]} 28. exd5 {[%emt 0:00:45]} cxd5 {[%emt 0:00:10]} 29. Nxd5 {[%emt 0:00:44]} Qxc5 {[%emt 0:00:00]} 30. Nxc7 {[%emt 0:00:13]} Qxc7 {[%emt 0:00:12]} 31. Qh3 {[%emt 0:00:30]} e4 {[%emt 0:00:30]} 32. Qh2 {[%emt 0:00:30]} Qxh2 {[%emt 0:00:30]} 33. Rxh2 {[%emt 0:00:30]} Kg7 {[%emt 0:00:30]} 34. Rdh1 {[%emt 0:00:30]} Nd7 {[%emt 0:00:30]} 35. Rh7+ {[%emt 0:00:30]} Kf8 {[%emt 0:00:30]} 36. Rh8 {[%emt 0:00:30]} Rxh8 {[%emt 0:00:30]} 37. Rxh8+ {[%emt 0:00:30]} Ke7 {[%emt 0:00:30]} 38. Ra8 {[%emt 0:00:30]} Ke6 {[%emt 0:00:18]} 39. Rxa6+ {[%emt 0:00:00]} Kf5 {[%emt 0:00:04]} 40. Rd6 {[%emt 0:00:00]} Ne5 {[%emt 0:00:42]} 41. a4 {[%emt 0:00:00]} bxa4 {[%emt 0:00:40]} 42. bxa4 {[%emt 0:00:10]} Kxg5 {[%emt 0:00:08]} 43. a5 {[%emt 0:00:00]} Nc4 {[%emt 0:01:04]} 44. Rd5+ {[%emt 0:00:13]} Kf4 {[%emt 0:00:00]} 45. Rc5 {[%emt 0:01:17]} Nxa5 {[%emt 0:01:24]} 46. Rxa5 {[%emt 0:00:47]} Kf3 {[%emt 0:00:04]} 47. c4 {[%emt 0:00:21]} Kxf2 {[%emt 0:00:30]} 48. c5 {[%emt 0:00:14]} e3 {[%emt 0:00:03]} 49. c6 {[%emt 0:00:04]} e2 {[%emt 0:00:35]} 50. Ra2 {[%emt 0:00:09]} Kf1 {[%emt 0:00:09]} 51. Rxe2 {[%emt 0:00:30]} Kxe2 {[%emt 0:00:00]} 52. c7 {[%emt 0:00:00]} f5 {[%emt 0:00:14]} 53. c8=Q {[%emt 0:00:00]} f4 {[%emt 0:00:00]} 54. Qe6+ {[%emt 0:00:06]} Kf2 {[%emt 0:00:00]} 55. Qxg6 {[%emt 0:00:46]} f3 {[%emt 0:00:01]} 56. Kd2 {[%emt 0:00:00]} Kf1 {[%emt 0:00:13]} 57. Qg3 {[%emt 0:00:37]} f2 {[%emt 0:00:30]} 58. Ke3 {[%emt 0:00:00]} 1-0

[Event "TUR-ch Youth U17 2019"]
[Site "Belek"]
[Date "2019.01.22"]
[Round "5"]
[White "Kargaci, Humeyra"]
[Black "Akti, Ezgi"]
[Result "1/2-1/2"]
[ECO "E09"]
[WhiteElo "1740"]
[BlackElo "1713"]
[Annotator "NA"]
[PlyCount "90"]
[EventDate "2019.01.20"]
[EventType "swiss"]
[EventCountry "TUR"]
[SourceTitle "playchess.com"]
[Source "ChessBase"]
[SourceQuality "1"]
[TimeControl "5400+30"]

1. c4 e6 2. g3 Nf6 3. Bg2 d5 4. Nf3 Be7 5. d4 O-O 6. Qc2 Nbd7 7. O-O c6 8. Nbd2 Re8 9. e4 dxe4 10. Nxe4 Nxe4 11. Qxe4 c5 12. Be3 cxd4 13. Bxd4 Bf6 14. Rfd1 Qc7 15. Bxf6 Nxf6 16. Qc2 Bd7 17. Nd4 e5 {[%emt 1:21:39]} 18. Nf5 {[%emt 0:52:00]} Bxf5 {[%emt 0:05:36]} 19. Qxf5 {[%emt 0:00:30]} e4 {[%emt 0:00:30]} 20. Rd4 {[%emt 0:00:30]} Qb6 {[%emt 0:00:30]} 21. Rad1 {[%emt 0:11:30]} e3 {[%emt 0:07:34]} 22. fxe3 {[%emt 0:03:30]} Rxe3 {[%emt 0:00:02]} 23. Qf2 {[%emt 0:04:30]} Rae8 {[%emt 0:01:34]} 24. Bf3 {[%emt 0:04:30]} h6 {[%emt 0:01:26]} 25. Kg2 {[%emt 0:02:30]} Qc7 {[%emt 0:01:17]} 26. Rd8 {[%emt 0:04:31]} Rxd8 {[%emt 0:00:53]} 27. Rxd8+ {[%emt 0:00:11]} Qxd8 {[%emt 0:00:05]} 28. Qxe3 {[%emt 0:00:31]} b6 {[%emt 0:00:00]} 29. b4 {[%emt 0:00:32]} Qe8 {[%emt 0:02:07]} 30. Qxe8+ {[%emt 0:04:33]} Nxe8 {[%emt 0:00:01]} 31. c5 {[%emt 0:00:07]} bxc5 {[%emt 0:00:46]} 32. bxc5 {[%emt 0:00:02]} Kf8 {[%emt 0:00:00]} 33. Kf2 {[%emt 0:01:01]} Ke7 {[%emt 0:00:08]} 34. Ke3 {[%emt 0:00:00]} Nc7 {[%emt 0:00:38]} 35. Kd4 {[%emt 0:00:40]} Ke6 {[%emt 0:00:27]} 36. a4 {[%emt 0:01:44]} f5 {[%emt 0:00:59]} 37. Bd1 {[%emt 0:01:39]} g5 {[%emt 0:00:24]} 38. Bb3+ {[%emt 0:00:12]} Kf6 {[%emt 0:00:06]} 39. c6 {[%emt 0:01:22]} h5 {[%emt 0:00:49]} 40. Kc5 {[%emt 0:00:46]} Ke5 {[%emt 0:00:06]} 41. Bd1 {[%emt 0:05:23]} h4 {[%emt 0:00:17]} 42. gxh4 {[%emt 0:02:49]} gxh4 {[%emt 0:00:02]} 43. a5 {[%emt 0:00:52]} Ne6+ {[%emt 0:01:11]} 44. Kc4 {[%emt 0:01:17]} Kd6 {[%emt 0:01:07]} 45. Bf3 {[%emt 0:01:04]} Ke5 {[%emt 0:00:50]} 1/2-1/2

[Event "TUR-ch Youth U17 2019"]
[Site "Belek"]
[Date "2019.01.22"]
[Round "5"]
[White "Nukan, Baris Tuna"]
[Black "Kirilmaz, Emre"]
[Result "0-1"]
[ECO "B04"]
[WhiteElo "1710"]
[BlackElo "2035"]
[Annotator "NA"]
[PlyCount "122"]
[EventDate "2019.01.20"]
[EventType "swiss"]
[EventCountry "TUR"]
[SourceTitle "playchess.com"]
[Source "ChessBase"]
[SourceQuality "1"]
[TimeControl "5400+30"]

1. e4 {[%emt 0:00:30]} Nf6 {[%emt 0:01:30]} 2. e5 {[%emt 0:00:00]} Nd5 {[%emt 0:01:30]} 3. d4 {[%emt 0:00:00]} d6 {[%emt 0:00:30]} 4. Nf3 {[%emt 0:00:30]} g6 {[%emt 0:00:00]} 5. c4 {[%emt 0:01:30]} Nb6 {[%emt 0:00:00]} 6. Nc3 {[%emt 0:00:30]} Bg7 {[%emt 0:00:30]} 7. exd6 {[%emt 0:01:30]} cxd6 {[%emt 0:00:30]} 8. Be2 {[%emt 0:00:00]} O-O {[%emt 0:00:30]} 9. O-O {[%emt 0:00:00]} Bg4 {[%emt 0:00:30]} 10. Be3 {[%emt 0:02:30]} Nc6 {[%emt 0:00:30]} 11. b3 {[%emt 0:03:30]} d5 {[%emt 0:03:30]} 12. c5 {[%emt 0:03:30]} Nc8 {[%emt 0:00:00]} 13. Rc1 {[%emt 0:00:30]} e6 {[%emt 0:00:00]} 14. Qd2 {[%emt 0:03:30]} N8e7 {[%emt 0:01:30]} 15. Ne1 {[%emt 0:09:30]} Bxe2 {[%emt 0:05:30]} 16. Nxe2 {[%emt 0:00:30]} Nf5 {[%emt 0:01:30]} 17. Nf3 {[%emt 0:04:30]} Nxe3 {[%emt 0:01:30]} 18. Qxe3 {[%emt 0:05:30]} b6 {[%emt 0:02:30]} 19. Qd2 {[%emt 0:06:30]} bxc5 {[%emt 0:05:30]} 20. Rxc5 {[%emt 0:00:30]} Qb6 {[%emt 0:00:30]} 21. Rfc1 {[%emt 0:00:30]} Rfc8 {[%emt 0:01:30]} 22. b4 {[%emt 0:05:30]} Bf8 {[%emt 0:00:30]} 23. R5c2 {[%emt 0:05:30]} Bxb4 {[%emt 0:12:30]} 24. Qf4 {[%emt 0:01:30]} Qb7 {[%emt 0:12:30]} 25. Ng5 {[%emt 0:03:30]} Nd8 {[%emt 0:07:30]} 26. Rc7 {[%emt 0:07:30]} Rxc7 {[%emt 0:00:30]} 27. Qxc7 {[%emt 0:06:30]} Qxc7 {[%emt 0:08:30]} 28. Rxc7 {[%emt 0:00:30]} Ba5 {[%emt 0:00:00]} 29. Rc2 {[%emt 0:00:30]} f6 {[%emt 0:01:00]} 30. Nf3 {[%emt 0:01:30]} Kf7 {[%emt 0:00:30]} 31. g4 {[%emt 0:01:30]} g5 {[%emt 0:01:30]} 32. Nc1 {[%emt 0:01:30]} Nb7 {[%emt 0:01:30]} 33. Nb3 {[%emt 0:00:30]} Bb6 {[%emt 0:00:00]} 34. a4 {[%emt 0:01:30]} Ke7 {[%emt 0:00:00]} 35. Kf1 {[%emt 0:00:30]} Kd7 {[%emt 0:01:30]} 36. Nc5+ {[%emt 0:02:30]} Bxc5 {[%emt 0:00:30]} 37. dxc5 {[%emt 0:00:00]} Rc8 {[%emt 0:00:00]} 38. h4 {[%emt 0:03:00]} h6 {[%emt 0:03:00]} 39. hxg5 {[%emt 0:00:30]} hxg5 {[%emt 0:00:00]} 40. Nd4 {[%emt 0:00:40]} Rxc5 {[%emt 0:01:00]} 41. Rb2 {[%emt 0:00:20]} Nd6 {[%emt 0:00:00]} 42. Nb5 {[%emt 0:00:30]} Nxb5 {[%emt 0:01:00]} 43. axb5 {[%emt 0:00:30]} Kc7 {[%emt 0:00:00]} 44. Ra2 {[%emt 0:00:00]} Rxb5 {[%emt 0:00:00]} 45. Rxa7+ {[%emt 0:00:00]} Kd6 {[%emt 0:00:00]} 46. Ke2 {[%emt 0:00:30]} Ke5 {[%emt 0:00:00]} 47. Ra4 {[%emt 0:00:30]} Rb2+ {[%emt 0:01:30]} 48. Ke3 {[%emt 0:00:00]} Rb3+ {[%emt 0:00:30]} 49. Ke2 {[%emt 0:00:00]} Rc3 {[%emt 0:00:00]} 50. f3 {[%emt 0:00:30]} Rc6 {[%emt 0:00:00]} 51. Kd3 {[%emt 0:00:30]} Rb6 {[%emt 0:01:30]} 52. Ke3 {[%emt 0:00:30]} f5 {[%emt 0:01:30]} 53. gxf5 {[%emt 0:00:30]} exf5 {[%emt 0:00:00]} 54. Kd3 {[%emt 0:00:00]} Rb3+ {[%emt 0:01:00]} 55. Ke2 {[%emt 0:00:00]} Rc3 {[%emt 0:00:00]} 56. Rb4 {[%emt 0:00:30]} Rc4 {[%emt 0:00:00]} 57. Rb3 {[%emt 0:00:30]} Kf4 {[%emt 0:00:30]} 58. Rd3 {[%emt 0:00:30]} Rc2+ {[%emt 0:00:00]} 59. Kd1 {[%emt 0:00:30]} Rf2 {[%emt 0:00:00]} 60. Rxd5 {[%emt 0:00:00]} Rxf3 {[%emt 0:00:30]} 61. Ke1 {[%emt 0:00:00]} g4 {[%emt 0:00:30]} 0-1

[Event "TUR-ch Youth U17 2019"]
[Site "Belek"]
[Date "2019.01.22"]
[Round "5"]
[White "Taskin, Arda"]
[Black "Guncan, Berke"]
[Result "0-1"]
[ECO "E19"]
[WhiteElo "1693"]
[BlackElo "2016"]
[Annotator "NA"]
[PlyCount "96"]
[EventDate "2019.01.20"]
[EventType "swiss"]
[EventCountry "TUR"]
[SourceTitle "playchess.com"]
[Source "ChessBase"]
[SourceQuality "1"]
[TimeControl "5400+30"]

1. d4 {[%emt 0:00:30]} Nf6 {[%emt 0:00:30]} 2. c4 {[%emt 0:00:30]} e6 {[%emt 0:00:30]} 3. Nf3 {[%emt 0:00:30]} b6 {[%emt 0:00:30]} 4. g3 {[%emt 0:00:00]} Bb7 {[%emt 0:00:00]} 5. Bg2 {[%emt 0:00:00]} Be7 {[%emt 0:00:00]} 6. O-O {[%emt 0:00:00]} O-O {[%emt 0:00:30]} 7. Nc3 {[%emt 0:00:00]} Ne4 {[%emt 0:00:00]} 8. Qc2 {[%emt 0:01:30]} Nxc3 {[%emt 0:00:00]} 9. Qxc3 {[%emt 0:00:30]} c5 {[%emt 0:00:30]} 10. dxc5 {[%emt 0:00:00]} bxc5 {[%emt 0:00:00]} 11. Bf4 {[%emt 0:00:00]} d6 {[%emt 0:03:00]} 12. Rad1 {[%emt 0:02:30]} Qb6 {[%emt 0:03:30]} 13. Rfe1 {[%emt 0:02:30]} Rd8 {[%emt 0:01:30]} 14. e4 {[%emt 0:02:30]} e5 {[%emt 0:05:30]} 15. Bg5 {[%emt 0:05:30]} Bxg5 {[%emt 0:00:30]} 16. Nxg5 {[%emt 0:01:30]} h6 {[%emt 0:00:30]} 17. Nh3 {[%emt 0:00:00]} Nc6 {[%emt 0:00:30]} 18. f4 {[%emt 0:02:00]} Nd4 {[%emt 0:01:30]} 19. f5 {[%emt 0:02:30]} f6 {[%emt 0:00:30]} 20. a3 {[%emt 0:06:30]} a5 {[%emt 0:01:30]} 21. Rd3 {[%emt 0:06:30]} a4 {[%emt 0:01:30]} 22. Nf2 {[%emt 0:01:30]} Rab8 {[%emt 0:01:30]} 23. Nd1 {[%emt 0:02:30]} Ba6 {[%emt 0:00:30]} 24. Bf1 {[%emt 0:02:30]} Qc6 {[%emt 0:05:30]} 25. Qc1 {[%emt 0:04:30]} Rb3 {[%emt 0:03:30]} 26. Rxb3 {[%emt 0:01:30]} axb3 {[%emt 0:00:00]} 27. Re3 {[%emt 0:00:30]} Rb8 {[%emt 0:09:00]} 28. Bd3 {[%emt 0:01:30]} Qe8 {[%emt 0:01:30]} 29. g4 {[%emt 0:02:30]} Qf7 {[%emt 0:00:30]} 30. Rg3 {[%emt 0:01:30]} Qc7 {[%emt 0:21:30]} 31. Ne3 {[%emt 0:05:30]} Bb7 {[%emt 0:00:30]} 32. Qe1 {[%emt 0:07:30]} Bc6 {[%emt 0:00:30]} 33. h4 {[%emt 0:03:30]} Qb7 {[%emt 0:00:30]} 34. Nd5 {[%emt 0:01:30]} Bxd5 {[%emt 0:00:00]} 35. cxd5 {[%emt 0:00:30]} Qa7 {[%emt 0:07:00]} 36. Bc4 {[%emt 0:03:30]} Nc2 {[%emt 0:00:30]} 37. Qc3 {[%emt 0:08:30]} Nxa3 {[%emt 0:02:30]} 38. bxa3 {[%emt 0:03:30]} b2 {[%emt 0:00:00]} 39. Ba2 {[%emt 0:00:00]} c4+ {[%emt 0:02:00]} 40. Kf1 {[%emt 0:02:00]} b1=Q+ {[%emt 0:00:30]} 41. Bxb1 {[%emt 0:00:30]} Rxb1+ {[%emt 0:00:00]} 42. Ke2 {[%emt 0:00:30]} Rb3 {[%emt 0:02:00]} 43. Qe1 {[%emt 0:00:30]} Qxa3 {[%emt 0:01:30]} 44. Rxb3 {[%emt 0:00:00]} cxb3 {[%emt 0:00:30]} 45. Qc3 {[%emt 0:01:00]} Qa2+ {[%emt 0:05:30]} 46. Ke3 {[%emt 0:00:52]} Qg2 {[%emt 0:01:30]} 47. Kd3 {[%emt 0:01:46]} b2 {[%emt 0:01:30]} 48. Qc2 {[%emt 0:01:16]} Qf1+ {[%emt 0:00:00]} 0-1